fUST/lending_fUST_20251231
["ID","MTS","AMOUNT","RATE_DAILY","PERIOD"]
[400175107,1767169841794,-500.0,0.00013699,2]
[400175109,1767169841805,-565.555714,0.00013699,2]
[400175111,1767169841814,-500.0,0.00013699,2]
[400175113,1767169841823,-500.0,0.00013699,2]
[400175115,1767169841833,-500.0,0.00013699,2]
[400175117,1767169841842,-500.0,0.00013699,2]
[400175119,1767169841851,-159.68059141,0.00013699,2]
[400175121,1767169841861,-500.0,0.00013699,2]
[400175123,1767169841870,-500.0,0.00013699,2]
[400175125,1767169841879,-500.0,0.00013699,2]
[400175127,1767169841890,-500.0,0.00013699,2]
[400175129,1767169841899,-500.0,0.00013699,2]
[400175131,1767169841908,-500.0,0.00013699,2]
[400175133,1767169841918,-500.0,0.00013699,2]
[400175135,1767169841927,-500.0,0.00013699,2]
[400175137,1767169841937,-500.0,0.00013699,2]
[400175139,1767169841947,-150.35034149,0.00013699,2]
[400175141,1767169841956,-500.0,0.00013699,2]
[400175143,1767169841966,-346.46150426,0.00013699,2]
[400175145,1767169841975,-500.0,0.00013699,2]
[400175147,1767169841984,-500.0,0.00013699,2]
[400175148,1767169841994,-500.0,0.00013699,2]
[400175150,1767169842003,-500.0,0.00013699,2]
[400175152,1767169842013,-500.0,0.00013699,2]
[400175155,1767169842022,-500.0,0.00013699,2]
[400175156,1767169842032,-500.0,0.00013699,2]
[400175158,1767169842041,-500.0,0.00013699,2]
[400175160,1767169842050,-500.0,0.00013699,2]
[400175162,1767169842060,-500.0,0.00013699,2]
[400175164,1767169842070,-303.93264249,0.00013699,2]
[400175166,1767169842080,-500.0,0.00013699,2]
[400175168,1767169842090,-500.0,0.00013699,2]
[400175170,1767169842099,-500.0,0.00013699,2]
[400175172,1767169842110,-160.15137988,0.00013699,2]
[400175174,1767169842120,-500.0,0.00013699,2]
[400175176,1767169842129,-500.0,0.00013699,2]
[400175178,1767169842138,-500.0,0.00013699,2]
[400175180,1767169842147,-500.0,0.00013699,2]
[400175182,1767169842156,-500.0,0.00013699,2]
[400175184,1767169842165,-587.30545204,0.00013699,2]
[400175186,1767169842174,-500.0,0.00013699,2]
[400175188,1767169842184,-500.0,0.00013699,2]
[400175190,1767169842194,-237.8458189,0.00013699,2]
[400175192,1767169842204,-158.38534385,0.00013699,2]
[400175194,1767169842213,-500.0,0.00013699,2]
[400175196,1767169842222,-500.0,0.00013699,2]
[400175198,1767169842232,-416.75445415,0.00013699,2]
[400175200,1767169842241,-500.0,0.00013699,2]
[400175202,1767169842251,-500.0,0.00013699,2]
[400175204,1767169842260,-500.0,0.00013699,2]
[400175206,1767169842269,-500.0,0.00013699,2]
[400175208,1767169842279,-500.0,0.00013699,2]
[400175210,1767169842288,-500.0,0.00013699,2]
[400175212,1767169842297,-500.0,0.00013699,2]
[400175214,1767169842307,-158.38532202,0.00013699,2]
[400175216,1767169842317,-160.3309554,0.00013699,2]
[400175218,1767169842326,-500.0,0.00013699,2]
[400175220,1767169842336,-158.18512013,0.00013699,2]
[400175222,1767169842345,-158.38534191,0.00013699,2]
[400175224,1767169842355,-157.18386067,0.00013699,2]
[400175225,1767169842364,-160.18745103,0.00013699,2]
[400175228,1767169842373,-158.38886572,0.00013699,2]
[400175230,1767169842383,-260.2481779,0.00013699,2]
[400175231,1767169842393,-500.0,0.00013699,2]
[400175233,1767169842403,-188.42009972,0.00013699,2]
[400175235,1767169842412,-158.39206841,0.00013699,2]
[400175237,1767169842422,-158.38533297,0.00013699,2]
[400175239,1767169842431,-500.0,0.00013699,2]
[400175241,1767169842441,-298.53483888,0.00013699,2]
[400175243,1767169842452,-500.0,0.00013699,2]
[400175245,1767169842463,-500.0,0.00013699,2]
[400175247,1767169842473,-500.0,0.00013699,2]
[400175249,1767169842482,-500.0,0.00013699,2]
[400175251,1767169842492,-540.63230604,0.00013699,2]
[400175253,1767169842502,-500.0,0.00013699,2]
[400175255,1767169842512,-500.0,0.00013699,2]
[400175257,1767169842522,-500.0,0.00013699,2]
[400175259,1767169842531,-158.3853059,0.00013699,2]
[400175261,1767169842542,-158.10807846,0.00013699,2]
[400175263,1767169842552,-500.0,0.00013699,2]
[400175265,1767169842561,-500.0,0.00013699,2]
[400175267,1767169842571,-500.0,0.00013699,2]
[400175269,1767169842583,-500.0,0.00013699,2]
[400175271,1767169842593,-500.0,0.00013699,2]
[400175273,1767169842603,-163.65866633,0.00013699,2]
[400175275,1767169842612,-500.0,0.00013699,2]
[400175277,1767169842623,-500.0,0.00013699,2]
[400175279,1767169842636,-500.0,0.00013699,2]
[400175281,1767169842646,-309.28633635,0.00013699,2]
[400175283,1767169842656,-500.0,0.00013699,2]
[400175285,1767169842665,-500.0,0.00013699,2]
[400175287,1767169842676,-165.03764715,0.00013699,2]
[400175289,1767169842685,-158.18512633,0.00013699,2]
[400175291,1767169842695,-500.0,0.00013699,2]
[400175293,1767169842704,-260.28159851,0.00013699,2]
[400175295,1767169842714,-500.0,0.00013699,2]
[400175309,1767169842847,-500.0,0.00013699,2]
[400175311,1767169842857,-500.0,0.00013699,2]
[400175313,1767169842867,-500.0,0.00013699,2]
[400175315,1767169842876,-500.0,0.00013699,2]
[400175317,1767169842885,-500.57498562,0.00013699,2]
[400175319,1767169842895,-500.0,0.00013699,2]
[400175321,1767169842904,-307.59957655,0.00013699,2]
[400175322,1767169842913,-500.0,0.00013699,2]
[400175324,1767169842922,-500.0,0.00013699,2]
[400175326,1767169842931,-178.08460977,0.00013699,2]
[400175328,1767169842941,-500.0,0.00013699,2]
[400175330,1767169842951,-500.0,0.00013699,2]
[400175332,1767169842960,-500.0,0.00013699,2]
[400175334,1767169842970,-500.0,0.00013699,2]
[400175336,1767169842980,-500.0,0.00013699,2]
[400175338,1767169842990,-500.0,0.00013699,2]
[400175340,1767169843000,-500.0,0.00013699,2]
[400175342,1767169843009,-500.0,0.00013699,2]
[400175344,1767169843019,-500.0,0.00013699,2]
[400175346,1767169843028,-500.0,0.00013699,2]
[400175348,1767169843037,-500.0,0.00013699,2]
[400175350,1767169843046,-500.0,0.00013699,2]
[400175352,1767169843055,-500.0,0.00013699,2]
[400175355,1767169843065,-500.0,0.00013699,2]
[400175357,1767169843074,-465.53448151,0.00013699,2]
[400175360,1767169843084,-500.0,0.00013699,2]
[400175363,1767169843093,-500.0,0.00013699,2]
[400175365,1767169843102,-500.0,0.00013699,2]
[400175368,1767169843111,-500.0,0.00013699,2]
[400175370,1767169843120,-151.0,0.000137,2]
[400175372,1767169843129,-151.0,0.000138,2]
[400175374,1767169843138,-1000.0,0.00013821,2]
[400175376,1767169843148,-1000.0,0.00013821,2]
[400175377,1767169843157,-1000.0,0.00013821,2]
[400175379,1767169843167,-1000.0,0.00013821,2]
[400175381,1767169843176,-1000.0,0.00013821,2]
[400175383,1767169843186,-315.88685405,0.00013821,2]
[400175385,1767169843196,-1000.0,0.00013821,2]
[400175387,1767169843205,-1000.0,0.00013821,2]
[400175389,1767169843215,-1000.0,0.00013821,2]
[400175391,1767169843225,-1000.0,0.00013821,2]
[400175393,1767169843235,-1000.0,0.00013821,2]
[400175395,1767169843244,-1061.98334321,0.00013821,2]
[400175397,1767169843253,-1000.0,0.00013821,2]
[400175399,1767169843263,-1000.0,0.00013821,2]
[400175401,1767169843272,-1000.0,0.00013821,2]
[400175403,1767169843281,-1000.0,0.00013821,2]
[400175405,1767169843291,-1000.0,0.00013821,2]
[400175406,1767169843300,-1000.0,0.00013821,2]
[400175408,1767169843310,-1000.0,0.00013821,2]
[400175410,1767169843319,-1000.0,0.00013821,2]
[400175412,1767169843328,-1000.0,0.00013821,2]
[400175414,1767169843338,-1000.0,0.00013821,2]
[400175416,1767169843348,-1000.0,0.00013821,2]
[400175418,1767169843356,-686.16786472,0.00013821,2]
[400175420,1767169843366,-1000.0,0.00013821,2]
[400175422,1767169843375,-1000.0,0.00013821,2]
[400175424,1767169843384,-1000.0,0.00013821,2]
[400175426,1767169843394,-690.31177109,0.00013821,2]
[400175428,1767169843403,-849.3977641,0.00013821,2]
[400175430,1767169843414,-1000.0,0.00013821,2]
[400175432,1767169843423,-1000.0,0.00013821,2]
[400175434,1767169843432,-1000.0,0.00013821,2]
[400175436,1767169843442,-1000.0,0.00013821,2]
[400175438,1767169843451,-1000.0,0.00013821,2]
[400175440,1767169843460,-1000.0,0.00013821,2]
[400175442,1767169843469,-544.63270575,0.00013821,2]
[400175444,1767169843479,-413.99757981,0.00013821,2]
[400175445,1767169843488,-1000.0,0.00013821,2]
[400175447,1767169843498,-1000.0,0.00013821,2]
[400175449,1767169843508,-1000.0,0.00013821,2]
[400175451,1767169843518,-1000.0,0.00013821,2]
[400175453,1767169843527,-602.47879957,0.00013821,2]
[400175455,1767169843537,-1000.0,0.00013821,2]
[400175457,1767169843546,-500.0,0.00013821,2]
[400175459,1767169843555,-864.0,0.00013844,2]
[400175461,1767169843564,-500.0,0.00013958,2]
[400175463,1767169843574,-151.0,0.00014,2]
[400175465,1767169843583,-500.0,0.00014095,2]
[400175467,1767169843593,-4087.75,0.00014181,2]
[400175468,1767169843602,-600.0,0.00014221,2]
[400175470,1767169843611,-491.17925611,0.00014232,2]
[400175472,1767169843622,-1000.0,0.00014247,2]
[400175474,1767169843635,-1000.0,0.00014247,2]
[400175476,1767169843644,-1000.0,0.00014247,2]
[400175478,1767169843654,-500.68443154,0.00014247,2]
[400175480,1767169843664,-1000.0,0.00014247,2]
[400175482,1767169843673,-1000.0,0.00014247,2]
[400175484,1767169843683,-1000.0,0.00014247,2]
[400175486,1767169843694,-1000.0,0.00014247,2]
[400175488,1767169843706,-1000.0,0.00014247,2]
[400175490,1767169843716,-1000.0,0.00014247,2]
[400175492,1767169843725,-500.4478313,0.00014247,2]
[400175494,1767169843734,-1000.0,0.00014247,2]
[400175496,1767169843743,-1000.0,0.00014247,2]
[400175498,1767169843753,-1000.0,0.00014247,2]
[400175500,1767169843762,-1000.0,0.00014247,2]
[400175502,1767169843772,-1000.0,0.00014247,2]
[400175503,1767169843781,-1000.0,0.00014247,2]
[400175505,1767169843791,-688.75934812,0.00014247,2]
[400175507,1767169843801,-500.48099046,0.00014247,2]
[400175509,1767169843810,-1000.0,0.00014247,2]
[400175511,1767169843820,-1000.0,0.00014247,2]
[400175513,1767169843829,-1000.0,0.00014247,2]
[400175515,1767169843839,-1000.0,0.00014247,2]
[400175517,1767169843848,-1000.0,0.00014247,2]
[400175519,1767169843858,-911.90264951,0.00014247,2]
[400175520,1767169843867,-1005.9697834,0.00014247,2]
[400175522,1767169843876,-1000.0,0.00014247,2]
[400175524,1767169843886,-1000.0,0.00014247,2]
[400175526,1767169843896,-1000.0,0.00014247,2]
[400175529,1767169843908,-433.15519118,0.00014247,2]
[400175531,1767169843918,-1000.0,0.00014247,2]
[400175533,1767169843927,-1000.0,0.00014247,2]
[400175535,1767169843937,-1000.0,0.00014247,2]
[400175536,1767169843947,-609.17214565,0.00014247,2]
[400175538,1767169843956,-1000.0,0.00014247,2]
[400175540,1767169843966,-1000.0,0.00014247,2]
[400175541,1767169843975,-1000.0,0.00014247,2]
[400175542,1767169843984,-495.63847364,0.00014247,2]
[400175543,1767169843994,-251.84601956,0.00014247,2]
[400175544,1767169844004,-1000.0,0.00014247,2]
[400175545,1767169844013,-1000.0,0.00014247,2]
[400175546,1767169844022,-1000.0,0.00014247,2]
[400175547,1767169844031,-1002.43895782,0.00014247,2]
[400175548,1767169844040,-297.63479171,0.00014247,2]
[400175549,1767169844050,-1000.0,0.00014247,2]
[400175550,1767169844060,-1000.0,0.00014247,2]
[400175551,1767169844069,-1000.75482131,0.00014247,2]
[400175552,1767169844079,-1000.0,0.00014247,2]
[400175553,1767169844089,-1000.0,0.00014247,2]
[400175554,1767169844098,-1000.0,0.00014247,2]
[400175555,1767169844107,-1000.0,0.00014247,2]
[400175556,1767169844117,-1000.0,0.00014247,2]
[400175557,1767169844126,-1000.0,0.00014247,2]
[400175558,1767169844135,-295.43360933,0.00014247,2]
[400175559,1767169844144,-1000.0,0.00014247,2]
[400175560,1767169844153,-454.65827101,0.00014247,2]
[400175561,1767169844163,-1000.0,0.00014247,2]
[400175562,1767169844172,-1000.0,0.00014247,2]
[400175563,1767169844181,-1000.0,0.00014247,2]
[400175564,1767169844191,-1000.0,0.00014247,2]
[400175565,1767169844200,-1000.0,0.00014247,2]
[400175566,1767169844210,-1000.0,0.00014247,2]
[400175567,1767169844219,-1000.0,0.00014247,2]
[400175568,1767169844229,-1000.0,0.00014247,2]
[400175569,1767169844238,-1000.0,0.00014247,2]
[400175570,1767169844248,-1000.0,0.00014247,2]
[400175571,1767169844257,-1000.0,0.00014247,2]
[400175572,1767169844267,-1000.0,0.00014247,2]
[400175573,1767169844276,-1000.0,0.00014247,2]
[400175574,1767169844286,-1000.0,0.00014247,2]
[400175575,1767169844295,-1000.0,0.00014247,2]
[400175576,1767169844305,-1000.0,0.00014247,2]
[400175577,1767169844314,-1000.0,0.00014247,2]
[400175578,1767169844324,-267.6781502,0.00014247,2]
[400175579,1767169844334,-1000.0,0.00014247,2]
[400175580,1767169844343,-1000.0,0.00014247,2]
[400175581,1767169844352,-1000.0,0.00014247,2]
[400175582,1767169844361,-1000.0,0.00014247,2]
[400175583,1767169844371,-1006.37696416,0.00014368,2]
[400175584,1767169844380,-1534.26412326,0.00014368,2]
[400175585,1767169844390,-1220.45191793,0.00014368,2]
[400175586,1767169844400,-1500.0,0.00014368,2]
[400175587,1767169844409,-1465.35115233,0.00014368,2]
[400175588,1767169844418,-1500.0,0.00014368,2]
[400175589,1767169844428,-1500.0,0.00014368,2]
[400175590,1767169844438,-1500.0,0.00014368,2]
[400175591,1767169844447,-1500.0,0.00014368,2]
[400175592,1767169844457,-1500.0,0.00014368,2]
[400175593,1767169844467,-196.20087533,0.00014368,2]
[400175594,1767169844476,-1500.0,0.00014368,2]
[400175595,1767169844485,-1500.0,0.00014368,2]
[400175596,1767169844495,-1500.0,0.00014368,2]
[400175597,1767169844505,-1500.0,0.00014368,2]
[400175598,1767169844515,-1500.0,0.00014368,2]
[400175599,1767169844524,-660.40400037,0.00014368,2]
[400175600,1767169844534,-782.65977069,0.00014368,2]
[400175601,1767169844543,-1239.12450639,0.00014368,2]
[400175602,1767169844553,-1500.0,0.00014368,2]
[400175603,1767169844563,-1500.0,0.00014368,2]
[400175604,1767169844572,-1500.0,0.00014368,2]
[400175605,1767169844582,-1500.0,0.00014368,2]
[400175606,1767169844592,-1644.50771368,0.00014368,2]
[400175607,1767169844602,-1500.0,0.00014368,2]
[400175608,1767169844612,-1500.0,0.00014368,2]
[400175609,1767169844622,-1424.40432946,0.00014368,2]
[400175610,1767169844636,-1500.0,0.00014368,2]
[400175611,1767169844645,-750.79014339,0.00014368,2]
[400175612,1767169844655,-1500.0,0.00014368,2]
[400175613,1767169844665,-1500.0,0.00014368,2]
[400175614,1767169844675,-752.44576455,0.00014368,2]
[400175615,1767169844685,-1500.0,0.00014368,2]
[400175616,1767169844695,-1500.0,0.00014368,2]
[400175617,1767169844705,-1500.0,0.00014368,2]
[400175618,1767169844715,-823.0,0.00014468,2]
[400175619,1767169844724,-2862.0,0.00014507,2]
[400175620,1767169844734,-250.0,0.00014536,2]
[400175621,1767169844744,-3292.0,0.00014596,2]
[400175622,1767169844753,-4905.3,0.00014749,2]
[400175623,1767169844762,-900.0,0.00014768,2]
[400175624,1767169844772,-1500.0,0.00014795,2]
[400175625,1767169844782,-1500.0,0.00014795,2]
[400175626,1767169844791,-1011.86637987,0.00014795,2]
[400175627,1767169844801,-1371.80562161,0.00014795,2]
[400175628,1767169844810,-1500.0,0.00014795,2]
[400175629,1767169844820,-1500.0,0.00014795,2]
[400175630,1767169844829,-524.36073826,0.00014795,2]
[400175631,1767169844839,-1500.0,0.00014795,2]
[400175632,1767169844848,-463.63501052,0.00014795,2]
[400175633,1767169844858,-1500.0,0.00014795,2]
[400175634,1767169844867,-1425.73894344,0.00014795,2]
[400175635,1767169844877,-1500.0,0.00014795,2]
[400175636,1767169844886,-1068.53710429,0.00014795,2]
[400175637,1767169844896,-1500.0,0.00014795,2]
[400175638,1767169844905,-1500.0,0.00014795,2]
[400175639,1767169844915,-1500.0,0.00014795,2]
[400175640,1767169844924,-1500.0,0.00014795,2]
[400175641,1767169844934,-662.55448324,0.00014795,2]
[400175642,1767169844943,-1500.0,0.00014795,2]
[400175643,1767169844952,-1078.13053233,0.00014795,2]
[400175644,1767169844961,-1500.0,0.00014795,2]
[400175645,1767169844971,-690.10820632,0.00014795,2]
[400175646,1767169844980,-1500.0,0.00014795,2]
[400175647,1767169844989,-1500.0,0.00014795,2]
[400175648,1767169844999,-1500.0,0.00014795,2]
[400175649,1767169845009,-1500.0,0.00014795,2]
[400175650,1767169845018,-1500.0,0.00014795,2]
[400175651,1767169845028,-1500.0,0.00014795,2]
[400175652,1767169845038,-1500.0,0.00014795,2]
[400175653,1767169845047,-1500.0,0.00014795,2]
[400175654,1767169845056,-1500.0,0.00014795,2]
[400175655,1767169845066,-614.96936602,0.00014795,2]
[400175656,1767169845075,-1500.0,0.00014795,2]
[400175657,1767169845085,-1500.0,0.00014795,2]
[400175658,1767169845095,-868.38939569,0.00014795,2]
[400175659,1767169845104,-1345.96405937,0.00014795,2]
[400175660,1767169845113,-1605.24677987,0.00014795,2]
[400175661,1767169845123,-1633.65989049,0.00014795,2]
[400175662,1767169845132,-1516.82099752,0.00014795,2]
[400175663,1767169845141,-1500.0,0.00014795,2]
[400175664,1767169845150,-1500.0,0.00014795,2]
[400175665,1767169845160,-1500.0,0.00014795,2]
[400175666,1767169845169,-1500.0,0.00014795,2]
[400175667,1767169845179,-1500.0,0.00014795,2]
[400175668,1767169845188,-1500.0,0.00014795,2]
[400175669,1767169845198,-1500.0,0.00014795,2]
[400175670,1767169845207,-1500.0,0.00014795,2]
[400175671,1767169845217,-1500.0,0.00014795,2]
[400175672,1767169845226,-342.96834915,0.00014795,2]
[400175673,1767169845236,-1500.0,0.00014795,2]
[400175674,1767169845246,-1500.0,0.00014795,2]
[400175675,1767169845256,-1500.0,0.00014795,2]
[400175676,1767169845266,-1500.0,0.00014795,2]
[400175677,1767169845276,-1500.0,0.00014795,2]
[400175678,1767169845286,-1500.0,0.00014795,2]
[400175679,1767169845296,-1500.0,0.00014795,2]
[400175680,1767169845305,-1500.0,0.00014795,2]
[400175681,1767169845314,-1500.0,0.00014795,2]
[400175682,1767169845324,-1500.0,0.00014795,2]
[400175683,1767169845333,-1500.0,0.00014795,2]
[400175684,1767169845343,-1500.0,0.00014795,2]
[400175685,1767169845352,-1142.5109954,0.00014795,2]
[400175686,1767169845361,-1613.45090759,0.00014916,2]
[400175687,1767169845371,-2000.0,0.00014916,2]
[400175688,1767169845380,-2000.0,0.00014916,2]
[400175689,1767169845390,-2000.0,0.00014916,2]
[400175690,1767169845399,-2000.0,0.00014916,2]
[400175691,1767169845409,-2000.0,0.00014916,2]
[400175692,1767169845420,-781.48137907,0.00014916,2]
[400175693,1767169845430,-185.55855892,0.00014916,2]
[400175694,1767169845441,-2000.0,0.00014916,2]
[400175695,1767169845450,-2000.0,0.00014916,2]
[400175696,1767169845459,-2000.0,0.00014916,2]
[400175697,1767169845468,-1318.87701711,0.00014916,2]
[400175698,1767169845478,-2000.0,0.00014916,2]
[400175699,1767169845487,-2000.0,0.00014916,2]
[400175700,1767169845497,-2000.0,0.00014916,2]
[400175701,1767169845507,-2000.0,0.00014916,2]
[400175702,1767169845516,-2000.0,0.00014916,2]
[400175703,1767169845526,-931.23584985,0.00014916,2]
[400175704,1767169845536,-2000.0,0.00014916,2]
[400175705,1767169845546,-2000.0,0.00014916,2]
[400175706,1767169845556,-2000.0,0.00014916,2]
[400175707,1767169845673,-2000.0,0.00014916,2]
[400175708,1767169845683,-2000.0,0.00014916,2]
[400175709,1767169845692,-80000.0,0.00015,2]
[400175710,1767169845703,-29157.16686888,0.00015,2]
[400175711,1767169845713,-150.77099208,0.00015,2]
[400175712,1767169845723,-463.28317587,0.00015001,2]
[400175713,1767169845732,-100000.0,0.00015028,2]
[400175714,1767169845742,-808.80107116,0.00015037,2]
[400175715,1767169845752,-1000.0,0.00015228,2]
[400175716,1767169845761,-5722.85,0.00015316,2]
[400175717,1767169845771,-1200.0,0.00015316,2]
[400175718,1767169845781,-402.01463508,0.00015342,2]
[400175719,1767169845790,-2000.0,0.00015342,2]
[400175720,1767169845800,-1655.66749295,0.00015342,2]
[400175721,1767169845810,-503.1340869,0.00015342,2]
[400175722,1767169845820,-1009.61748521,0.00015342,2]
[400175723,1767169845830,-682.49603851,0.00015342,2]
[400175724,1767169845841,-2000.0,0.00015342,2]
[400175725,1767169845851,-915.94669576,0.00015342,2]
[400175726,1767169845862,-2000.0,0.00015342,2]
[400175727,1767169845871,-2000.0,0.00015342,2]
[400175728,1767169845881,-2000.0,0.00015342,2]
[400175729,1767169845891,-1165.86238698,0.00015342,2]
[400175730,1767169845900,-2000.0,0.00015342,2]
[400175731,1767169845910,-2000.0,0.00015342,2]
[400175732,1767169845920,-2000.0,0.00015342,2]
[400175733,1767169845930,-2000.0,0.00015342,2]
[400175734,1767169845939,-909.51288327,0.00015342,2]
[400175735,1767169845949,-2000.0,0.00015342,2]
[400175737,1767169845959,-2000.0,0.00015342,2]
[400175738,1767169845968,-2000.0,0.00015342,2]
[400175739,1767169845978,-288.21762562,0.00015342,2]
[400175740,1767169845988,-157.67215419,0.00015342,2]
[400175741,1767169845997,-1510.33134929,0.00015342,2]
[400175742,1767169846007,-2000.0,0.00015342,2]
[400175743,1767169846016,-2000.0,0.00015342,2]
[400175744,1767169846025,-2000.0,0.00015342,2]
[400175745,1767169846034,-1104.13585388,0.00015342,2]
[400175746,1767169846044,-2000.0,0.00015342,2]
[400175747,1767169846053,-2000.0,0.00015342,2]
[400175748,1767169846063,-2000.0,0.00015342,2]
[400175749,1767169846072,-500.0,0.00015342,2]
[400175750,1767169846082,-2000.0,0.00015342,2]
[400175752,1767169846092,-1793.14415046,0.00015342,2]
[400175753,1767169846101,-2000.0,0.00015342,2]
[400175754,1767169846111,-1504.79599952,0.00015342,2]
[400175755,1767169846120,-2000.0,0.00015342,2]
[400175756,1767169846130,-2000.0,0.00015342,2]
[400175757,1767169846139,-2018.84773542,0.00015342,2]
[400175758,1767169846149,-922.85192268,0.00015342,2]
[400175759,1767169846158,-2000.0,0.00015342,2]
[400175760,1767169846167,-2000.0,0.00015342,2]
[400175761,1767169846177,-1718.16061512,0.00015342,2]
[400175762,1767169846187,-1504.98936626,0.00015342,2]
[400175763,1767169846196,-2000.0,0.00015342,2]
[400175765,1767169846205,-2000.0,0.00015342,2]
[400175767,1767169846214,-2260.55819049,0.00015464,2]
[400175769,1767169846224,-978.35295088,0.00015464,2]
[400175772,1767169846234,-1000.0,0.00015464,2]
[400175773,1767169846243,-2015.47786714,0.00015464,2]
[400175774,1767169846252,-2500.0,0.00015464,2]
[400175776,1767169846262,-2500.0,0.00015464,2]
[400175777,1767169846271,-2500.0,0.00015464,2]
[400175778,1767169846281,-2500.0,0.00015464,2]
[400175779,1767169846291,-1500.0,0.00015464,2]
[400175780,1767169846300,-2500.0,0.00015464,2]
[400175781,1767169846309,-2500.0,0.00015464,2]
[400175782,1767169846319,-2500.0,0.00015464,2]
[400175784,1767169846329,-2500.0,0.00015464,2]
[400175785,1767169846338,-503.81920107,0.00015464,2]
[400175786,1767169846348,-1349.32071924,0.00015464,2]
[400175787,1767169846358,-2500.0,0.00015464,2]
[400175788,1767169846368,-2500.0,0.00015464,2]
[400175789,1767169846377,-2500.0,0.00015464,2]
[400175790,1767169846387,-1500.0,0.00015864,2]
[400175791,1767169846396,-6540.39,0.00015883,2]
[400175792,1767169846406,-651.60877791,0.0001589,2]
[400175794,1767169846416,-550.74198848,0.0001589,2]
[400175796,1767169846426,-504.59975832,0.0001589,2]
[400175797,1767169846436,-2500.0,0.0001589,2]
[400175798,1767169846445,-1005.31532944,0.0001589,2]
[400175799,1767169846455,-1508.82384523,0.0001589,2]
[400175800,1767169846466,-1039.92702157,0.0001589,2]
[400175801,1767169846475,-1534.26049156,0.0001589,2]
[400175802,1767169846486,-903.04207638,0.0001589,2]
[400175803,1767169846495,-500.0,0.0001589,2]
[400175804,1767169846505,-503.64865922,0.0001589,2]
[400175805,1767169846514,-386.3706875,0.0001589,2]
[400175806,1767169846524,-574.09930708,0.0001589,2]
[400175807,1767169846534,-500.0,0.0001589,2]
[400175808,1767169846543,-299.59970903,0.0001589,2]
[400175809,1767169846553,-500.0,0.0001589,2]
[400175810,1767169846562,-1535.35417784,0.0001589,2]
[400175811,1767169846572,-777.52543131,0.0001589,2]
[400175813,1767169846582,-418.31768676,0.0001589,2]
[400175815,1767169846592,-2005.55305045,0.0001589,2]
[400175816,1767169846601,-500.0,0.0001589,2]
[400175817,1767169846611,-480.71714518,0.0001589,2]
[400175818,1767169846620,-379.37902934,0.0001589,2]
[400175819,1767169846629,-695.14400231,0.0001589,2]
[400175822,1767169846644,-1152.0,0.000159,2]
[400175823,1767169846654,-3000.0,0.00016012,2]
[400175825,1767169846664,-3000.0,0.00016012,2]
[400175826,1767169846674,-360.16624078,0.00016012,2]
[400175827,1767169846684,-3000.0,0.00016012,2]
[400175828,1767169846694,-3000.0,0.00016012,2]
[400175829,1767169846703,-3000.0,0.00016012,2]
[400175830,1767169846714,-3000.0,0.00016012,2]
[400175831,1767169846724,-3000.0,0.00016012,2]
[400175832,1767169846733,-3000.0,0.00016012,2]
[400175833,1767169846744,-3000.0,0.00016012,2]
[400175834,1767169846753,-3005.99987486,0.00016012,2]
[400175835,1767169846763,-1619.0,0.0001604,2]
[400175836,1767169846772,-308.97595015,0.00016412,2]
[400175837,1767169846782,-1383.15755431,0.00016438,2]
[400175838,1767169846792,-7357.94,0.0001645,2]
[400175839,1767169846801,-585.65952382,0.00016456,2]
[400175840,1767169846811,-200.0,0.00016473,2]
[400175841,1767169846822,-3500.0,0.0001656,2]
[400175842,1767169846833,-3500.0,0.0001656,2]